[Event "Early-Titled-Tuesday-Blitz-February-27-2024"]
[Site "Chess.com"]
[Date "2024.02.27"]
[Round "9"]
[White "Arlo2024"]
[Black "Kristof_08"]
[Result "0-1"]
[WhiteElo "2306"]
[BlackElo "2432"]
[TimeControl "180+1"]
[EndTime "9:43:57 PST"]
[Termination "Kristof_08 won by resignation"]

1. e4 {[%clk 0:03:00.9]} 1... c5 {[%clk 0:02:59.9]} 2. Nc3 {[%clk 0:03:00.6]}
2... e6 {[%clk 0:02:59.9]} 3. g3 {[%clk 0:03:01.5]} 3... d5 {[%clk 0:02:59.3]}
4. exd5 {[%clk 0:03:02.4]} 4... exd5 {[%clk 0:02:59.9]} 5. Bg2 {[%clk
0:03:03.1]} 5... Nf6 {[%clk 0:02:57.8]} 6. Nge2 {[%clk 0:03:02.5]} 6... d4
{[%clk 0:02:56.6]} 7. Ne4 {[%clk 0:03:03.1]} 7... Nxe4 {[%clk 0:02:56.7]} 8.
Bxe4 {[%clk 0:03:04]} 8... Nd7 {[%clk 0:02:56.5]} 9. O-O {[%clk 0:03:04.5]} 9...
Nf6 {[%clk 0:02:57.1]} 10. Bg2 {[%clk 0:03:04.8]} 10... Bd6 {[%clk 0:02:56.9]}
11. c3 {[%clk 0:03:05.2]} 11... d3 {[%clk 0:02:52.4]} 12. Nf4 {[%clk 0:03:05.5]}
12... Bxf4 {[%clk 0:02:52.4]} 13. Qa4+ {[%clk 0:03:05.8]} 13... Bd7 {[%clk
0:02:48.4]} 14. Re1+ {[%clk 0:03:06.4]} 14... Kf8 {[%clk 0:02:29.6]} 15. Qxf4
{[%clk 0:03:06.5]} 15... Bc6 {[%clk 0:02:30.2]} 16. b4 {[%clk 0:02:51.3]} 16...
Bxg2 {[%clk 0:02:28.9]} 17. Kxg2 {[%clk 0:02:50.9]} 17... Qd5+ {[%clk
0:02:29.2]} 18. Qf3 {[%clk 0:02:38.3]} 18... c4 {[%clk 0:02:23.6]} 19. Qxd5
{[%clk 0:02:27]} 19... Nxd5 {[%clk 0:02:24.1]} 20. b5 {[%clk 0:02:26.4]} 20...
f6 {[%clk 0:02:22]} 21. Re4 {[%clk 0:02:08.9]} 21... Kf7 {[%clk 0:02:20]} 22.
Rxc4 {[%clk 0:02:04.9]} 22... Rhd8 {[%clk 0:02:12.3]} 23. Ba3 {[%clk 0:01:56.6]}
23... a6 {[%clk 0:02:12.4]} 24. b6 {[%clk 0:01:52.5]} 24... Nxb6 {[%clk
0:02:10.5]} 25. Rh4 {[%clk 0:01:37.5]} 25... Rd5 {[%clk 0:01:45.9]} 26. c4
{[%clk 0:01:29.7]} 26... Ra5 {[%clk 0:01:42.2]} 27. Bb4 {[%clk 0:01:26.7]} 27...
Ra4 {[%clk 0:01:38.7]} 28. a3 {[%clk 0:01:09.5]} 28... a5 {[%clk 0:01:37.4]} 29.
Bc3 {[%clk 0:00:55.5]} 29... Rxc4 {[%clk 0:01:33.6]} 30. Rb1 {[%clk 0:00:47.7]}
30... Rxh4 {[%clk 0:01:22.8]} 31. gxh4 {[%clk 0:00:47.8]} 31... Nd5 {[%clk
0:01:16.4]} 32. Rxb7+ {[%clk 0:00:46.4]} 32... Ke6 {[%clk 0:01:16.3]} 33. Rxg7
{[%clk 0:00:37.9]} 33... Nxc3 {[%clk 0:01:15.5]} 34. Rg3 {[%clk 0:00:21.1]}
34... Rd8 {[%clk 0:01:11.7]} 35. Re3+ {[%clk 0:00:12.6]} 35... Kf7 {[%clk
0:01:10.7]} 36. Rxd3 {[%clk 0:00:12.3]} 36... Rxd3 {[%clk 0:01:10.1]} 0-1

[Event "Early-Titled-Tuesday-Blitz-February-27-2024"]
[Site "Chess.com"]
[Date "2024.02.27"]
[Round "9"]
[White "Zavgorodniy_Sergiy"]
[Black "Matols"]
[Result "1-0"]
[WhiteElo "2633"]
[BlackElo "2410"]
[TimeControl "180+1"]
[EndTime "9:44:00 PST"]
[Termination "Zavgorodniy_Sergiy won by resignation"]

1. d4 {[%clk 0:03:00.9]} 1... d5 {[%clk 0:02:59.6]} 2. c4 {[%clk 0:03:01.2]}
2... e6 {[%clk 0:02:59]} 3. Nf3 {[%clk 0:03:01.2]} 3... Nf6 {[%clk 0:02:58.7]}
4. e3 {[%clk 0:03:01.7]} 4... a6 {[%clk 0:02:57.2]} 5. Nbd2 {[%clk 0:03:01.5]}
5... dxc4 {[%clk 0:02:51.6]} 6. Bxc4 {[%clk 0:03:01.2]} 6... b5 {[%clk
0:02:50.3]} 7. Bd3 {[%clk 0:03:01.5]} 7... Bb7 {[%clk 0:02:50.6]} 8. O-O {[%clk
0:03:01.6]} 8... Nbd7 {[%clk 0:02:49.7]} 9. a4 {[%clk 0:03:01.8]} 9... b4 {[%clk
0:02:42.3]} 10. b3 {[%clk 0:03:02.1]} 10... c5 {[%clk 0:02:39.6]} 11. Bb2 {[%clk
0:03:02.4]} 11... cxd4 {[%clk 0:02:36]} 12. Bxd4 {[%clk 0:02:59.7]} 12... Bc5
{[%clk 0:02:31.4]} 13. Qe2 {[%clk 0:02:57.2]} 13... Bxd4 {[%clk 0:02:26.7]} 14.
Nxd4 {[%clk 0:02:58.1]} 14... O-O {[%clk 0:02:20.6]} 15. Rac1 {[%clk 0:02:57.7]}
15... Ne5 {[%clk 0:02:16.5]} 16. Bb1 {[%clk 0:02:56.7]} 16... Qd5 {[%clk
0:02:12.6]} 17. f3 {[%clk 0:02:55.9]} 17... Rac8 {[%clk 0:02:06.5]} 18. Ne4
{[%clk 0:02:55.9]} 18... Nxe4 {[%clk 0:01:56.8]} 19. Bxe4 {[%clk 0:02:55.5]}
19... Qd7 {[%clk 0:01:57.1]} 20. Bxb7 {[%clk 0:02:53.5]} 20... Qxb7 {[%clk
0:01:58]} 21. Qd2 {[%clk 0:02:48.3]} 21... h6 {[%clk 0:01:43.2]} 22. Rxc8 {[%clk
0:02:46.9]} 22... Rxc8 {[%clk 0:01:42.1]} 23. Rc1 {[%clk 0:02:47.8]} 23... a5
{[%clk 0:01:33.7]} 24. Rc2 {[%clk 0:02:44.6]} 24... Rxc2 {[%clk 0:01:28.8]} 25.
Qxc2 {[%clk 0:02:45.5]} 25... Qd5 {[%clk 0:01:19]} 26. Kf2 {[%clk 0:02:39.4]}
26... g6 {[%clk 0:01:10.8]} 27. h3 {[%clk 0:02:36.3]} 27... Kg7 {[%clk 0:01:10]}
28. Ke2 {[%clk 0:02:36.3]} 28... h5 {[%clk 0:01:08.8]} 29. Qc7 {[%clk
0:02:31.9]} 29... Nd7 {[%clk 0:01:03.5]} 30. Qc6 {[%clk 0:02:22]} 30... Nc5
{[%clk 0:00:42.1]} 31. Qxd5 {[%clk 0:02:16.7]} 31... exd5 {[%clk 0:00:43]} 32.
Kd2 {[%clk 0:02:17]} 32... Kf6 {[%clk 0:00:39.3]} 33. Kc2 {[%clk 0:02:17.3]}
33... Nb7 {[%clk 0:00:34.3]} 34. Nc6 {[%clk 0:02:08.1]} 34... Ke6 {[%clk
0:00:28.3]} 35. Kd3 {[%clk 0:02:01.8]} 35... Kd6 {[%clk 0:00:27.4]} 36. Nd4
{[%clk 0:02:01.5]} 36... Nc5+ {[%clk 0:00:27]} 37. Ke2 {[%clk 0:02:01]} 37... f6
{[%clk 0:00:18.6]} 38. Kd2 {[%clk 0:01:59.5]} 38... Nb7 {[%clk 0:00:16.7]} 39.
Kc2 {[%clk 0:01:57.9]} 39... Nc5 {[%clk 0:00:16.6]} 40. Nb5+ {[%clk 0:01:56.8]}
40... Ke5 {[%clk 0:00:14.2]} 41. Nd4 {[%clk 0:01:55.4]} 41... Kd6 {[%clk
0:00:14.2]} 42. h4 {[%clk 0:01:55]} 42... Nb7 {[%clk 0:00:13.4]} 43. g4 {[%clk
0:01:50.4]} 43... Nc5 {[%clk 0:00:12.6]} 44. gxh5 {[%clk 0:01:49.1]} 44... gxh5
{[%clk 0:00:13.5]} 45. Nf5+ {[%clk 0:01:48.2]} 45... Ke5 {[%clk 0:00:13.6]} 46.
Ng7 {[%clk 0:01:48.5]} 46... d4 {[%clk 0:00:13.2]} 47. exd4+ {[%clk 0:01:47.3]}
47... Kxd4 {[%clk 0:00:14.1]} 48. Nxh5 {[%clk 0:01:47.4]} 48... Ke3 {[%clk
0:00:13.3]} 49. Nxf6 {[%clk 0:01:46.8]} 49... Kxf3 {[%clk 0:00:12.8]} 50. h5
{[%clk 0:01:47]} 50... Ne6 {[%clk 0:00:11.4]} 51. h6 {[%clk 0:01:47.1]} 51...
Ng5 {[%clk 0:00:09.1]} 52. h7 {[%clk 0:01:46.4]} 1-0

[Event "Early-Titled-Tuesday-Blitz-February-27-2024"]
[Site "Chess.com"]
[Date "2024.02.27"]
[Round "9"]
[White "SashaKuzhilniy"]
[Black "Binary010"]
[Result "0-1"]
[WhiteElo "2612"]
[BlackElo "2844"]
[TimeControl "180+1"]
[EndTime "9:44:01 PST"]
[Termination "Binary010 won by checkmate"]

1. b3 {[%clk 0:03:00]} 1... e5 {[%clk 0:02:59.8]} 2. Bb2 {[%clk 0:03:00.9]} 2...
Nc6 {[%clk 0:03:00.3]} 3. e3 {[%clk 0:03:01.4]} 3... Nf6 {[%clk 0:03:00]} 4. Bb5
{[%clk 0:03:01.4]} 4... e4 {[%clk 0:02:59.6]} 5. d3 {[%clk 0:03:00.1]} 5... a6
{[%clk 0:02:57.8]} 6. Bxc6 {[%clk 0:02:59.6]} 6... dxc6 {[%clk 0:02:58.7]} 7.
Ne2 {[%clk 0:02:56.5]} 7... Bf5 {[%clk 0:02:54.3]} 8. Ng3 {[%clk 0:02:56]} 8...
Bg6 {[%clk 0:02:54.5]} 9. d4 {[%clk 0:02:47.6]} 9... h5 {[%clk 0:02:52.5]} 10.
h4 {[%clk 0:02:43.2]} 10... Bd6 {[%clk 0:02:43.3]} 11. Nd2 {[%clk 0:02:37.9]}
11... Bxg3 {[%clk 0:02:36.7]} 12. fxg3 {[%clk 0:02:38.8]} 12... Qd6 {[%clk
0:02:37]} 13. Nf1 {[%clk 0:02:38.2]} 13... O-O-O {[%clk 0:02:37.2]} 14. Qe2
{[%clk 0:02:38.2]} 14... Bf5 {[%clk 0:02:32.8]} 15. Qf2 {[%clk 0:02:36.5]} 15...
Bg4 {[%clk 0:02:31.2]} 16. Qf4 {[%clk 0:02:35]} 16... Qe6 {[%clk 0:02:27.1]} 17.
Nd2 {[%clk 0:02:32.1]} 17... Nd5 {[%clk 0:02:18.8]} 18. Qf2 {[%clk 0:02:30.7]}
18... Kb8 {[%clk 0:02:01.5]} 19. O-O {[%clk 0:02:28.7]} 19... f6 {[%clk
0:02:00.5]} 20. a3 {[%clk 0:02:23.3]} 20... Ne7 {[%clk 0:01:44.4]} 21. c4 {[%clk
0:02:22.2]} 21... Nf5 {[%clk 0:01:44.7]} 22. Rae1 {[%clk 0:02:08.3]} 22... Rde8
{[%clk 0:01:15.7]} 23. Qf4 {[%clk 0:02:06.5]} 23... Rhg8 {[%clk 0:01:07.6]} 24.
a4 {[%clk 0:01:52]} 24... g5 {[%clk 0:00:59]} 25. Qf2 {[%clk 0:01:50.7]} 25...
Rg6 {[%clk 0:00:53.5]} 26. d5 {[%clk 0:01:45]} 26... cxd5 {[%clk 0:00:51.8]} 27.
cxd5 {[%clk 0:01:45.9]} 27... Qxd5 {[%clk 0:00:47.8]} 28. Nc4 {[%clk 0:01:46.2]}
28... Qe6 {[%clk 0:00:41.9]} 29. Kh2 {[%clk 0:01:43.7]} 29... Rf8 {[%clk
0:00:34.7]} 30. a5 {[%clk 0:01:36.2]} 30... Rfg8 {[%clk 0:00:11.7]} 31. hxg5
{[%clk 0:01:27.2]} 31... Rxg5 {[%clk 0:00:10.6]} 32. Qf4 {[%clk 0:01:24.3]}
32... h4 {[%clk 0:00:09.6]} 33. gxh4 {[%clk 0:01:19.7]} 33... Nxh4 {[%clk
0:00:09.9]} 34. Qxf6 {[%clk 0:01:11.8]} 34... Nf3+ {[%clk 0:00:09]} 35. Rxf3
{[%clk 0:01:07.9]} 35... exf3 {[%clk 0:00:08.8]} 36. Qxe6 {[%clk 0:01:06.3]}
36... Bxe6 {[%clk 0:00:09.7]} 37. gxf3 {[%clk 0:01:04.5]} 37... Rh5# {[%clk
0:00:09.7]} 0-1

[Event "Early-Titled-Tuesday-Blitz-February-27-2024"]
[Site "Chess.com"]
[Date "2024.02.27"]
[Round "9"]
[White "Preobrazhenska_D2011"]
[Black "PolandHussars"]
[Result "0-1"]
[WhiteElo "2438"]
[BlackElo "2573"]
[TimeControl "180+1"]
[EndTime "9:44:01 PST"]
[Termination "PolandHussars won by checkmate"]

1. e4 {[%clk 0:01:09.6]} 1... e5 {[%clk 0:02:59]} 2. Nf3 {[%clk 0:01:09.9]} 2...
Nc6 {[%clk 0:02:59.5]} 3. Bb5 {[%clk 0:01:10.6]} 3... g6 {[%clk 0:02:59.5]} 4.
c3 {[%clk 0:01:08.8]} 4... d6 {[%clk 0:02:56.8]} 5. O-O {[%clk 0:01:08.4]} 5...
Bg7 {[%clk 0:02:56.2]} 6. d4 {[%clk 0:01:07.7]} 6... Bd7 {[%clk 0:02:56.6]} 7.
Re1 {[%clk 0:01:06.4]} 7... Nge7 {[%clk 0:02:56.3]} 8. d5 {[%clk 0:01:02.9]}
8... Nb8 {[%clk 0:02:56.3]} 9. Bxd7+ {[%clk 0:01:03.4]} 9... Nxd7 {[%clk
0:02:57.2]} 10. Nbd2 {[%clk 0:01:03.7]} 10... O-O {[%clk 0:02:57.1]} 11. c4
{[%clk 0:01:01.9]} 11... h6 {[%clk 0:02:56.8]} 12. h4 {[%clk 0:00:59.8]} 12...
f5 {[%clk 0:02:56.5]} 13. Qc2 {[%clk 0:00:53.3]} 13... Nf6 {[%clk 0:02:51.5]}
14. exf5 {[%clk 0:00:47.5]} 14... Nxf5 {[%clk 0:02:45.6]} 15. Ne4 {[%clk
0:00:47.4]} 15... Ng4 {[%clk 0:02:42.8]} 16. Qe2 {[%clk 0:00:35.8]} 16... Nxh4
{[%clk 0:02:38.6]} 17. Nfd2 {[%clk 0:00:22.9]} 17... h5 {[%clk 0:02:30.1]} 18.
g3 {[%clk 0:00:17.1]} 18... Nf5 {[%clk 0:02:28.7]} 19. Nf3 {[%clk 0:00:17.8]}
19... Bh6 {[%clk 0:02:22.6]} 20. Bxh6 {[%clk 0:00:17.7]} 20... Nfxh6 {[%clk
0:02:23.5]} 21. Nfg5 {[%clk 0:00:16.9]} 21... Qe7 {[%clk 0:02:20.4]} 22. f3
{[%clk 0:00:15]} 22... Nf6 {[%clk 0:02:18.4]} 23. Qd2 {[%clk 0:00:12.7]} 23...
Nxe4 {[%clk 0:02:17.9]} 24. Nxe4 {[%clk 0:00:12.8]} 24... Nf5 {[%clk 0:02:17.4]}
25. Kg2 {[%clk 0:00:13.4]} 25... Nd4 {[%clk 0:02:17.6]} 26. Rf1 {[%clk
0:00:13.7]} 26... Rf5 {[%clk 0:02:13.4]} 27. f4 {[%clk 0:00:12.4]} 27... Raf8
{[%clk 0:02:10.7]} 28. Rae1 {[%clk 0:00:12.4]} 28... Qg7 {[%clk 0:02:05.8]} 29.
Ng5 {[%clk 0:00:11.5]} 29... exf4 {[%clk 0:02:04.1]} 30. gxf4 {[%clk 0:00:10.5]}
30... h4 {[%clk 0:01:58.2]} 31. Re4 {[%clk 0:00:10.4]} 31... c5 {[%clk
0:01:52.7]} 32. dxc6 {[%clk 0:00:10.5]} 32... Nxc6 {[%clk 0:01:52.2]} 33. Ne6
{[%clk 0:00:10.9]} 33... Qf6 {[%clk 0:01:48.6]} 34. Nxf8 {[%clk 0:00:10.6]}
34... Qxf8 {[%clk 0:01:48.2]} 35. Re6 {[%clk 0:00:09.1]} 35... Kh7 {[%clk
0:01:43]} 36. Qxd6 {[%clk 0:00:07.9]} 36... Qg7 {[%clk 0:01:42.8]} 37. Rfe1
{[%clk 0:00:03.2]} 37... g5 {[%clk 0:01:39.8]} 38. Kh2 {[%clk 0:00:02.7]} 38...
gxf4 {[%clk 0:01:38.4]} 39. R6e4 {[%clk 0:00:02.8]} 39... Qg3+ {[%clk
0:01:36.3]} 40. Kh1 {[%clk 0:00:03.6]} 40... Qf3+ {[%clk 0:01:35.4]} 41. Kh2
{[%clk 0:00:04]} 41... Qg3+ {[%clk 0:01:35.8]} 42. Kh1 {[%clk 0:00:03.9]} 42...
Qh3+ {[%clk 0:01:36.4]} 43. Kg1 {[%clk 0:00:04.7]} 43... Rg5+ {[%clk 0:01:36.9]}
44. Kf2 {[%clk 0:00:05.4]} 44... Rg2+ {[%clk 0:01:36.8]} 45. Kf1 {[%clk
0:00:05.6]} 45... Qh1# {[%clk 0:01:37.4]} 0-1

[Event "Early-Titled-Tuesday-Blitz-February-27-2024"]
[Site "Chess.com"]
[Date "2024.02.27"]
[Round "9"]
[White "Misterfox120"]
[Black "pr1105"]
[Result "0-1"]
[WhiteElo "2417"]
[BlackElo "2333"]
[TimeControl "180+1"]
[EndTime "9:44:02 PST"]
[Termination "pr1105 won on time"]

1. d4 {[%clk 0:03:00.9]} 1... Nf6 {[%clk 0:02:59.9]} 2. Bf4 {[%clk 0:03:00]}
2... d5 {[%clk 0:02:58.5]} 3. e3 {[%clk 0:02:56.1]} 3... c5 {[%clk 0:02:58.7]}
4. Nf3 {[%clk 0:02:55.3]} 4... Nc6 {[%clk 0:02:55.8]} 5. Nbd2 {[%clk 0:02:46.4]}
5... Qb6 {[%clk 0:02:53.2]} 6. dxc5 {[%clk 0:02:44.6]} 6... Qxb2 {[%clk
0:02:53.3]} 7. Rb1 {[%clk 0:02:43.8]} 7... Qc3 {[%clk 0:02:53.6]} 8. Bb5 {[%clk
0:02:43.1]} 8... g6 {[%clk 0:02:54]} 9. e4 {[%clk 0:02:33.4]} 9... dxe4 {[%clk
0:02:50.8]} 10. Be5 {[%clk 0:02:28.4]} 10... Qxc5 {[%clk 0:02:24.9]} 11. Bg3
{[%clk 0:02:19.2]} 11... exf3 {[%clk 0:02:14.1]} 12. Qxf3 {[%clk 0:01:31.5]}
12... Bg7 {[%clk 0:01:56.9]} 13. O-O {[%clk 0:00:55.7]} 13... O-O {[%clk
0:01:49.3]} 14. Nb3 {[%clk 0:00:49.4]} 14... Qxc2 {[%clk 0:01:31.3]} 15. Rfc1
{[%clk 0:00:28.4]} 15... Qxa2 {[%clk 0:01:30.2]} 16. Ra1 {[%clk 0:00:15.8]}
16... Qb2 {[%clk 0:01:28.7]} 17. Rab1 {[%clk 0:00:16.1]} 17... Qa3 {[%clk
0:01:24.9]} 18. Bxc6 {[%clk 0:00:15.8]} 18... bxc6 {[%clk 0:01:23.2]} 19. Qxc6
{[%clk 0:00:16.7]} 19... Be6 {[%clk 0:01:19.5]} 20. Nc5 {[%clk 0:00:15.2]} 20...
Rac8 {[%clk 0:01:18.9]} 21. Qb5 {[%clk 0:00:14.2]} 21... Ne4 {[%clk 0:01:05.9]}
22. Nd3 {[%clk 0:00:12.8]} 22... a6 {[%clk 0:00:51.5]} 23. Qb7 {[%clk
0:00:05.9]} 23... Qxd3 {[%clk 0:00:49]} 24. Re1 {[%clk 0:00:04.6]} 24... Nxg3
{[%clk 0:00:47.2]} 25. hxg3 {[%clk 0:00:04.1]} 25... Bd4 {[%clk 0:00:46.8]} 0-1

[Event "Early-Titled-Tuesday-Blitz-February-27-2024"]
[Site "Chess.com"]
[Date "2024.02.27"]
[Round "9"]
[White "jcmesafischer"]
[Black "Egor_Koshulyan"]
[Result "0-1"]
[WhiteElo "2394"]
[BlackElo "2666"]
[TimeControl "180+1"]
[EndTime "9:44:13 PST"]
[Termination "Egor_Koshulyan won on time"]

1. e4 {[%clk 0:03:00.9]} 1... c5 {[%clk 0:02:51.9]} 2. Nf3 {[%clk 0:03:00.9]}
2... Nc6 {[%clk 0:02:48.2]} 3. b3 {[%clk 0:02:57.6]} 3... Nf6 {[%clk 0:02:39.6]}
4. Nc3 {[%clk 0:02:57.3]} 4... d6 {[%clk 0:02:35.8]} 5. Bb2 {[%clk 0:02:56.6]}
5... e6 {[%clk 0:02:33.9]} 6. d4 {[%clk 0:02:52.9]} 6... cxd4 {[%clk 0:02:32.9]}
7. Nxd4 {[%clk 0:02:53.8]} 7... Be7 {[%clk 0:02:33]} 8. Be2 {[%clk 0:02:52.9]}
8... Bd7 {[%clk 0:02:31.7]} 9. O-O {[%clk 0:02:51.8]} 9... O-O {[%clk
0:02:31.1]} 10. Qd2 {[%clk 0:02:45.1]} 10... a6 {[%clk 0:02:06.4]} 11. Rad1
{[%clk 0:02:36.4]} 11... Rc8 {[%clk 0:02:06.5]} 12. Kh1 {[%clk 0:02:32.5]} 12...
b5 {[%clk 0:02:01.9]} 13. a4 {[%clk 0:02:22.2]} 13... b4 {[%clk 0:01:47.8]} 14.
Na2 {[%clk 0:02:21.4]} 14... Nxe4 {[%clk 0:01:47.9]} 15. Qe3 {[%clk 0:02:20.8]}
15... d5 {[%clk 0:01:45.4]} 16. Bxa6 {[%clk 0:02:18]} 16... Nxd4 {[%clk
0:01:40.9]} 17. Bxd4 {[%clk 0:01:45.1]} 17... Rxc2 {[%clk 0:01:36.9]} 18. Nc1
{[%clk 0:01:32.5]} 18... f5 {[%clk 0:00:34]} 19. f3 {[%clk 0:01:03]} 19... Bg5
{[%clk 0:00:28.7]} 20. f4 {[%clk 0:00:08.2]} 20... Bf6 {[%clk 0:00:28.9]} 21.
Bxf6 {[%clk 0:00:03.2]} 21... Qxf6 {[%clk 0:00:29.8]} 0-1

[Event "Early-Titled-Tuesday-Blitz-February-27-2024"]
[Site "Chess.com"]
[Date "2024.02.27"]
[Round "9"]
[White "AryanTari"]
[Black "wannabe2700"]
[Result "1-0"]
[WhiteElo "2938"]
[BlackElo "2750"]
[TimeControl "180+1"]
[EndTime "9:44:20 PST"]
[Termination "AryanTari won by resignation"]

1. c4 {[%clk 0:03:00.9]} 1... f5 {[%clk 0:02:57.8]} 2. g3 {[%clk 0:02:54.9]}
2... Nf6 {[%clk 0:02:57.1]} 3. Bg2 {[%clk 0:02:55.4]} 3... g6 {[%clk 0:02:57.7]}
4. Nc3 {[%clk 0:02:54.5]} 4... Bg7 {[%clk 0:02:58]} 5. d4 {[%clk 0:02:53.4]}
5... O-O {[%clk 0:02:57.9]} 6. Nf3 {[%clk 0:02:53.3]} 6... d6 {[%clk 0:02:58.5]}
7. O-O {[%clk 0:02:53.1]} 7... c6 {[%clk 0:02:59.2]} 8. Rb1 {[%clk 0:02:52.3]}
8... a5 {[%clk 0:02:51.2]} 9. Qc2 {[%clk 0:02:50.3]} 9... Na6 {[%clk 0:02:51]}
10. Rd1 {[%clk 0:02:45.8]} 10... Qe8 {[%clk 0:02:50.1]} 11. d5 {[%clk
0:02:41.2]} 11... cxd5 {[%clk 0:02:42.2]} 12. cxd5 {[%clk 0:02:37.7]} 12... Bd7
{[%clk 0:02:37]} 13. Nd4 {[%clk 0:02:36.3]} 13... Rc8 {[%clk 0:02:27.3]} 14. Qb3
{[%clk 0:02:13.2]} 14... Nc5 {[%clk 0:02:23.8]} 15. Qa3 {[%clk 0:02:06]} 15...
Ra8 {[%clk 0:02:09.8]} 16. h3 {[%clk 0:01:53.5]} 16... Nfe4 {[%clk 0:01:01.3]}
17. Nxe4 {[%clk 0:01:47.2]} 17... fxe4 {[%clk 0:01:02.2]} 18. Be3 {[%clk
0:01:45.2]} 18... b5 {[%clk 0:00:47.1]} 19. b3 {[%clk 0:01:37.2]} 19... Qf7
{[%clk 0:00:41.9]} 20. Nc6 {[%clk 0:01:29.1]} 20... b4 {[%clk 0:00:19]} 21. Qc1
{[%clk 0:01:28.6]} 21... Bxc6 {[%clk 0:00:16.4]} 22. dxc6 {[%clk 0:01:29.5]}
22... Rac8 {[%clk 0:00:17.3]} 23. Qc2 {[%clk 0:01:08.1]} 23... Qf5 {[%clk
0:00:13.6]} 24. Qc4+ {[%clk 0:01:06.5]} 24... Kh8 {[%clk 0:00:10.7]} 25. Rd5
{[%clk 0:01:06.3]} 25... Qf7 {[%clk 0:00:07.3]} 26. Bxe4 {[%clk 0:01:00.3]}
26... Rxc6 {[%clk 0:00:05]} 27. Bf3 {[%clk 0:00:46.3]} 27... Rfc8 {[%clk
0:00:04.7]} 28. Rxc5 {[%clk 0:00:45.4]} 28... d5 {[%clk 0:00:02.1]} 29. Qxd5
{[%clk 0:00:42.1]} 29... e6 {[%clk 0:00:02.3]} 30. Rxc6 {[%clk 0:00:42.4]} 30...
exd5 {[%clk 0:00:02.3]} 31. Rxc8+ {[%clk 0:00:42.8]} 1-0

[Event "Early-Titled-Tuesday-Blitz-February-27-2024"]
[Site "Chess.com"]
[Date "2024.02.27"]
[Round "9"]
[White "GeorgiosSouleidis"]
[Black "amanjazu"]
[Result "1-0"]
[WhiteElo "2710"]
[BlackElo "2533"]
[TimeControl "180+1"]
[EndTime "9:44:21 PST"]
[Termination "GeorgiosSouleidis won by checkmate"]

1. e4 {[%clk 0:03:00.9]} 1... Nf6 {[%clk 0:03:00]} 2. e5 {[%clk 0:02:59.7]} 2...
Nd5 {[%clk 0:03:00.2]} 3. d4 {[%clk 0:03:00.3]} 3... d6 {[%clk 0:02:59.7]} 4.
Nf3 {[%clk 0:03:00.8]} 4... g6 {[%clk 0:02:59.4]} 5. Bc4 {[%clk 0:03:00.3]} 5...
Nb6 {[%clk 0:02:58.8]} 6. Bb3 {[%clk 0:03:00.7]} 6... Bg7 {[%clk 0:02:59.4]} 7.
Ng5 {[%clk 0:03:00.6]} 7... O-O {[%clk 0:02:53.1]} 8. Qf3 {[%clk 0:02:58.2]}
8... d5 {[%clk 0:02:37.7]} 9. Qg3 {[%clk 0:02:32.9]} 9... Nc6 {[%clk 0:02:27]}
10. c3 {[%clk 0:02:32.9]} 10... f6 {[%clk 0:02:25.2]} 11. Nf3 {[%clk 0:02:08.1]}
11... fxe5 {[%clk 0:02:07.1]} 12. Nxe5 {[%clk 0:02:09]} 12... Nxe5 {[%clk
0:01:53.3]} 13. dxe5 {[%clk 0:02:09.9]} 13... e6 {[%clk 0:01:53.5]} 14. Bg5
{[%clk 0:02:02.8]} 14... Qe8 {[%clk 0:01:44.4]} 15. Nd2 {[%clk 0:02:01.9]} 15...
c5 {[%clk 0:01:43.8]} 16. h4 {[%clk 0:02:00.9]} 16... Rf5 {[%clk 0:01:37.5]} 17.
Nf3 {[%clk 0:01:07.2]} 17... Nd7 {[%clk 0:01:34.2]} 18. Bc2 {[%clk 0:01:06.7]}
18... Bxe5 {[%clk 0:01:30.6]} 19. Nxe5 {[%clk 0:01:05.2]} 19... Rxe5+ {[%clk
0:01:30.4]} 20. Kf1 {[%clk 0:01:03]} 20... b6 {[%clk 0:00:16.6]} 21. h5 {[%clk
0:00:59.2]} 21... Ba6+ {[%clk 0:00:16.9]} 22. Kg1 {[%clk 0:00:59.7]} 22... Re2
{[%clk 0:00:16.3]} 23. hxg6 {[%clk 0:00:45.4]} 23... hxg6 {[%clk 0:00:08.5]} 24.
Qh4 {[%clk 0:00:28.1]} 24... Qf8 {[%clk 0:00:02.5]} 25. Qh7# {[%clk 0:00:26.7]}
1-0